Cogmind - Beta 16.1 @@@ ROGUE MODE // 2026.03.03 @ 05:51:44 Player: FL-IST Result: Self-destructed Performance ------------- Evolutions (2) 1000 Regions Visited (5) 1000 Robots Destroyed (23) 115 Value Destroyed (382) 382 Prototype IDs (23) 460 Alien Tech Used (0) 0 Bonus (314) 314 TOTAL SCORE: 3271 Bonus ------- Follower Combat Kills 14 Aligned with FarCom 300 Cogmind --------- Core Integrity 550/550 Matter 278/300 Energy 240/250 System Corruption 0% Temperature Cool (0) Movement Treading (160) Location -8/Materials Parts ------- > --- POWER (1) -------- Ion Engine > --- PROPULSION (2) --- Light Treads Light Treads > --- UTILITY (2) ------ Small Storage Unit > --- WEAPON (6) ------- Beam Cannon Assault Rifle > --- INVENTORY (8) ---- Ion Engine Aluminum Leg Aluminum Leg Seismic Detector Medium Laser Medium Laser Grenade Launcher Peak State ------------ > --- POWER ------------ Ion Engine > --- PROPULSION ------- Light Treads Light Treads > --- UTILITY ---------- Small Storage Unit Supersonic Drone Bay > --- WEAPON ----------- Beam Cannon Assault Rifle > --- INVENTORY -------- Ion Engine Aluminum Leg Aluminum Leg Seismic Detector Medium Laser Medium Laser Grenade Launcher [Rating: 14] Favorites ----------- Power Ion Engine Engine Ion Engine Propulsion Light Treads Treads Light Treads Utility Small Storage Unit Device Seismic Detector Storage Small Storage Unit Weapon Assault Rifle Energy Gun Medium Laser Energy Cannon Beam Cannon Ballistic Gun Assault Rifle Build | -11 -10 -10 -10 -9 -8 ------- Run | Yrd Mat Min Exi Min Mat Slots Evolved 4 | . . . . . 4 Power . | . . . . . . Propulsion . | . . . . . . Utility . | . . . . . . Weapon 4 | . . . . . 4 Parts Attached 9 | 7 1 . 1 . . Power 1 | 1 . . . . . Engine 1 | 1 . . . . . Core . | . . . . . . Reactor . | . . . . . . Propulsion 2 | 2 . . . . . Treads 2 | 2 . . . . . Leg . | . . . . . . Wheel . | . . . . . . Hover . | . . . . . . Flight . | . . . . . . Utility 3 | 2 . . 1 . . Device 2 | 1 . . 1 . . Storage 1 | 1 . . . . . Processor . | . . . . . . Hackware . | . . . . . . Protection . | . . . . . . Artifact . | . . . . . . Weapon 3 | 2 1 . . . . Energy Gun 1 | 1 . . . . . Energy Cannon 1 | . 1 . . . . Ballistic Gun 1 | 1 . . . . . Ballistic Cannon . | . . . . . . Launcher . | . . . . . . Special Weapon . | . . . . . . Impact Weapon . | . . . . . . Slashing Weapon . | . . . . . . Piercing Weapon . | . . . . . . Special Melee Weapon . | . . . . . . Unidentified Prototypes . | . . . . . . Parts Lost . | . . . . . . Power . | . . . . . . Propulsion . | . . . . . . Utility . | . . . . . . Weapon . | . . . . . . Highest Loss Streak . | . . . . . . To Critical Strikes . | . . . . . . Average Backups 6 | 2 6 7 7 7 7 Power . | . 1 1 1 1 1 Propulsion 1 | 1 2 2 2 2 2 Utility . | . 1 1 1 1 1 Weapon 2 | . 2 3 3 3 3 Tool/Special . | . . . . . . Unused Backups 6 | . . . . . 6 Power 1 | . . . . . 1 Propulsion 2 | . . . . . 2 Utility 1 | . . . . . 1 Weapon 2 | . . . . . 2 Tool/Special . | . . . . . . Average Slot Usage (%) 96 | . 100 100 100 89 63 Engine 13 | . 14 14 14 14 9 Treads 27 | . 28 28 28 28 18 Device 12 | . 14 14 14 4 9 Storage 13 | . 14 14 14 14 9 Energy Gun 2 | . 6 . . . . Energy Cannon 11 | . 7 14 14 14 9 Ballistic Gun 13 | . 14 14 14 14 9 Peak Build Rating 14 | 7 7 7 14 14 14 Average Rating 8 | 5 7 7 10 8 14 On Entrance 7 | . 7 7 7 14 7 Avg Prop Armor Cover (%) . | . . . . . . Naked Turns . | . . . . . . Heaviest Build 16 | 15 16 16 16 16 16 Greatest Support 40 | 40 40 40 40 40 40 Greatest Overweight (x) 1 | 1 . . . . . Average Overweight (x) . | . . . . . . Largest Inventory Capacity 8 | 8 8 8 8 8 8 Average Capacity 7 | 7 8 8 8 8 8 Most Carried 8 | 5 7 7 7 8 7 Average Carried 6 | 2 6 7 7 7 7 Final Capacity 8 | 8 8 8 8 8 8 Final Carried 8 | 5 7 7 7 8 7 Class Distribution -------------------- 100% | Mutant Dominant Class ---------------- Mutant | -10/Materials Mutant | -10/Mines Mutant | -10/Exiles Mutant | -9/Mines Mutant | -8/Materials Resources | -11 -10 -10 -10 -9 -8 ----------- Run | Yrd Mat Min Exi Min Mat Matter Collected 443 | 306 58 . . 79 . Remotely . | . . . . . . Salvage Created 670 | 172 361 54 . . 83 Parts 49 | 18 18 5 . . 8 Haulers Intercepted 1 | . 1 . . . . Recyclers Shooed . | . . . . . . Parts Field Recycled . | . . . . . . Retrieved Matter . | . . . . . . Parts Self-Destructed . | . . . . . . Prevented . | . . . . . . Parts Restored . | . . . . . . Kills | -11 -10 -10 -10 -9 -8 ------- Run | Yrd Mat Min Exi Min Mat Combat Hostiles Destroyed 15 | . 10 3 . . 2 Guns 8 | . 6 1 . . 1 Cannons 7 | . 4 2 . . 1 Classes Destroyed 6 | 3 3 . . . . Worker 2 | 2 . . . . . Tunneler 3 | 3 . . . . . Hauler 1 | . 1 . . . . Recycler 1 | 1 . . . . . Swarmer 8 | . 3 3 . . 2 Grunt 8 | . 7 . . . 1 Best Kill Streak 3 | 3 3 3 . . 2 Combat Bots Only 3 | . 3 3 . . 2 Max Kills in Single Turn 2 | 2 1 1 . . 1 Gunslinging . | . . . . . . Exploded . | . . . . . . Melee . | . . . . . . Uniques/NPCs Destroyed . | . . . . . . Combat | -11 -10 -10 -10 -9 -8 -------- Run | Yrd Mat Min Exi Min Mat Hostile Shots Fired 62 | . 41 11 . . 10 Missed 18 | . 13 1 . . 4 Hits 44 | . 28 10 . . 6 Projectile 44 | . 28 10 . . 6 Damage Taken 403 | . 274 77 . . 52 Core 59 | . 45 14 . . . Absorbed by Shields . | . . . . . . Core Remaining (%) 88 | 100 . . . 76 . Volleys Fired 55 | 14 33 4 . . 4 Largest 2 | 2 2 2 . . 2 Hottest 80 | 70 80 80 . . 80 Shots Fired 109 | 28 65 8 . . 8 Gun 76 | 28 40 4 . . 4 Cannon 33 | . 25 4 . . 4 Launcher . | . . . . . . Special . | . . . . . . Kinetic 55 | 14 33 4 . . 4 Thermal 54 | 14 32 4 . . 4 Explosive . | . . . . . . Electromagnetic . | . . . . . . Robot Hit Streak 8 | 4 8 2 . . 7 Robot Miss Streak 4 | 4 4 1 . . 2 Penetration Max . | . . . . . . Secondary Targets . | . . . . . . Shots Hit Robots 59 | 15 35 4 . . 5 Core Hits 27 | 7 14 3 . . 3 Critical Kills 1 | . 1 . . . . Critical Parts Destroyed . | . . . . . . Critical Strikes 2 | 1 1 . . . . Burn 1 | 1 . . . . . Destroy 1 | . 1 . . . . Melee Attacks . | . . . . . . Impact . | . . . . . . Slashing . | . . . . . . Piercing . | . . . . . . Sneak Attacks . | . . . . . . Combat Hostiles . | . . . . . . Follow-up Attacks . | . . . . . . Damage Inflicted 929 | 226 529 65 . . 109 Guns 543 | 226 266 12 . . 39 Cannons 386 | . 263 53 . . 70 Explosions . | . . . . . . Melee . | . . . . . . Ramming . | . . . . . . Kinetic 370 | 102 217 12 . . 39 Thermal 559 | 124 312 53 . . 70 Explosive . | . . . . . . Electromagnetic . | . . . . . . Impact . | . . . . . . Slashing . | . . . . . . Piercing . | . . . . . . Highest Corruption . | . . . . . . Average Corruption . | . . . . . . Corruption Purged . | . . . . . . Corruption Blocked . | . . . . . . Overload Shots . | . . . . . . Overflow Damage . | . . . . . . Projectiles . | . . . . . . Explosions . | . . . . . . Melee . | . . . . . . Knockbacks . | . . . . . . Impact . | . . . . . . Kinetic . | . . . . . . Secondary . | . . . . . . Self-Inflicted Damage . | . . . . . . Shots . | . . . . . . Rammed . | . . . . . . Targets Rammed . | . . . . . . Kicked . | . . . . . . Crushed . | . . . . . . Highest Temperature 126 | 99 126 72 . . . Average Temperature 40 | 42 40 38 . . . Received Heat Transfer 96 | . 96 . . . . Siege Activations . | . . . . . . Martial Activations . | . . . . . . Shielding Activations . | . . . . . . Robots Disrupted . | . . . . . . Combat Hostiles . | . . . . . . Robots Corrupted . | . . . . . . Combat Hostiles . | . . . . . . Parts Fried . | . . . . . . Impact Corruptions . | . . . . . . Robots Melted . | . . . . . . Combat Hostiles . | . . . . . . Parts Melted 5 | 1 3 1 . . . Heat Transferred 1406 | 444 703 111 . . 148 Parts Sabotaged . | . . . . . . Parts Stolen . | . . . . . . Parts Stripped . | . . . . . . Power Chain Reactions . | . . . . . . Alert | -11 -10 -10 -10 -9 -8 ------- Run | Yrd Mat Min Exi Min Mat Maximum Alert Level . | . . . . . . Low Security (%) 100 | 100 100 100 . 100 100 Level 1 . | . . . . . . Level 2 . | . . . . . . Level 3 . | . . . . . . Level 4 . | . . . . . . Level 5 . | . . . . . . High Security . | . . . . . . Max Security . | . . . . . . Peak Influence 109 | 15 108 109 . . 104 Initial 39 | . 3 39 . . . Average 28 | 3 25 63 . . 54 Influence Increases 493 | 30 279 70 . . 114 Destroy 0b10 Robot/C 340 | . 200 60 . . 80 Destroy 0b10 Robot/NC 35 | 30 5 . . . . Destroy Leader 62 | . 42 10 . . 10 Allied During Kill 9 | . . . . . 9 Disable Machine 30 | . 15 . . . 15 Destroy Structure 2 | . 2 . . . . Lose Combat Pursuer 15 | . 15 . . . . Influence Decreases 409 | 25 184 151 19 . 30 Entered New Map 82 | . 2 61 19 . . Time Decay 317 | 25 182 90 . . 20 Lost Ally 10 | . . . . . 10 Squads Dispatched 2 | . 2 . . . . Investigation . | . . . . . . Extermination . | . . . . . . Reinforcement 2 | . 2 . . . . Assault . | . . . . . . Garrison . | . . . . . . Intercept . | . . . . . . Searches Triggered . | . . . . . . Construction Impeded . | . . . . . . Haulers Reinforced . | . . . . . . Active Scanning Responses . | . . . . . . Cargo Convoy Interrupts . | . . . . . . Stealth | -11 -10 -10 -10 -9 -8 --------- Run | Yrd Mat Min Exi Min Mat Distress Signals 2 | . 1 . . . 1 Communications Jammed . | . . . . . . Distress Signals . | . . . . . . Times Spotted 27 | . 18 3 . . 6 Peak Tracking Total 6 | . 4 1 . . 6 Tactical Retreats 1 | . 1 . . . . Traps | -11 -10 -10 -10 -9 -8 ------- Run | Yrd Mat Min Exi Min Mat Traps Triggered . | . . . . . . Indirectly . | . . . . . . Trap Hack Attempts . | . . . . . . Triggered . | . . . . . . Disarmed . | . . . . . . Reprogrammed . | . . . . . . Reused . | . . . . . . Traps Extracted . | . . . . . . Installed . | . . . . . . Triggered . | . . . . . . Machines | -11 -10 -10 -10 -9 -8 ---------- Run | Yrd Mat Min Exi Min Mat Machines Disabled 2 | . 1 . . . 1 Max in Single Turn 1 | . 1 . . . . Machines Repaired . | . . . . . . Machines Dismantled . | . . . . . . Machines Sabotaged . | . . . . . . Overloaded Fab Kills . | . . . . . . Hacking | -11 -10 -10 -10 -9 -8 --------- Run | Yrd Mat Min Exi Min Mat Machines Accessed 1 | . . . 1 . . Terminals . | . . . . . . Fabricators . | . . . . . . Repair Stations . | . . . . . . Recycling Units . | . . . . . . Scanalyzers . | . . . . . . Garrison Access . | . . . . . . Total Hacks 1 | . . . 1 . . Successful 1 | . . . 1 . . Failed . | . . . . . . Catastrophic . | . . . . . . Database Lockouts . | . . . . . . Manual 1 | . . . 1 . . Terminals . | . . . . . . Fabricators . | . . . . . . Repair Stations . | . . . . . . Recycling Units . | . . . . . . Scanalyzers . | . . . . . . Garrison Access . | . . . . . . Terminal Hacks 1 | . . . 1 . . Proto ID Catalog 1 | . . . 1 . . Fabricator Hacks . | . . . . . . Repair Station Hacks . | . . . . . . Recycling Unit Hacks . | . . . . . . Scanalyzer . | . . . . . . Garrison Access Hacks . | . . . . . . Unauthorized Hacks . | . . . . . . Terminals . | . . . . . . Fabricators . | . . . . . . Repair Stations . | . . . . . . Recycling Units . | . . . . . . Scanalyzers . | . . . . . . Garrison Access . | . . . . . . Data Cores Recovered . | . . . . . . Used . | . . . . . . Hacking Detections . | . . . . . . Full Trace Events . | . . . . . . Feedback Events . | . . . . . . Feedback Blocked . | . . . . . . Robot Schematics Acquired . | . . . . . . Robots Built . | . . . . . . Authchips . | . . . . . . Time . | . . . . . . Total Robot Build Rating . | . . . . . . Part Schematics Acquired . | . . . . . . Parts Built . | . . . . . . Authchips . | . . . . . . Time . | . . . . . . Total Part Build Rating . | . . . . . . Part Studies Acquired . | . . . . . . Parts Repaired . | . . . . . . Time . | . . . . . . Parts Recycled . | . . . . . . Recycled Matter . | . . . . . . Retrieved Matter . | . . . . . . Retrieved Components . | . . . . . . Parts Scanalyzed . | . . . . . . Part Schematics Acquired . | . . . . . . Parts Damaged . | . . . . . . Bothacking | -11 -10 -10 -10 -9 -8 ------------ Run | Yrd Mat Min Exi Min Mat Used RIF Installer . | . . . . . . Robots Hacked . | . . . . . . Non-combat . | . . . . . . Combat . | . . . . . . Robot Hacks Applied . | . . . . . . Relay Couplers Released . | . . . . . . Fabnet Peak Effective % . | . . . . . . Robots Rewired . | . . . . . . Allies Hacked . | . . . . . . Hacks Repelled . | . . . . . . Allies | -11 -10 -10 -10 -9 -8 -------- Run | Yrd Mat Min Exi Min Mat Total Allies 3 | . . 3 . . . Largest Group 3 | . . 3 3 3 3 Highest-Rated Group 40 | . . 40 40 40 40 Highest-Rated Ally 16 | . . 16 16 16 16 Total Orders 9 | . . . 1 2 6 EXPLORE 8 | . . . 1 1 6 RETURN 1 | . . . . 1 . Ally Attacks 9 | . . . . . 9 Total Damage 60 | . . . . . 60 Kills 2 | . . . . . 2 Allies Corrupted . | . . . . . . Allies Melted . | . . . . . . Intel | -11 -10 -10 -10 -9 -8 ------- Run | Yrd Mat Min Exi Min Mat Active Infowar (turns) 928 | 54 484 190 200 . . Seismic 928 | 54 484 190 200 . . Robot Analysis Total . | . . . . . . Derelict Logs Recovered . | . . . . . . Drone Launches 7 | . . . 1 . 6 Drone Recoveries 6 | . . . . 1 5 Exploration | -11 -10 -10 -10 -9 -8 ------------- Run | Yrd Mat Min Exi Min Mat Turns Passed 1435 | 157 484 190 394 131 79 Spaces Moved 709 | 68 230 110 222 67 12 Core 8 | 8 . . . . . Treads 701 | 60 230 110 222 67 12 Legs . | . . . . . . Wheels . | . . . . . . Hover . | . . . . . . Flight . | . . . . . . Fastest Speed 50 | 50 160 160 160 160 160 Average Speed 158 | 148 160 160 160 160 160 Slowest Speed 160 | 160 160 160 160 160 160 Overloaded Moves . | . . . . . . Propulsion Burnouts . | . . . . . . Robots Hopped . | . . . . . . Potential Cave-ins . | . . . . . . Cave-ins Triggered . | . . . . . . Exploration Rate (%) 58 | 4 51 36 91 95 75 Regions Visited 5 Branch Regions 3 Pre-discovered Areas . | . . . . . . Known Exits Taken . | . . . . . . Unknown Exits Taken 5 | 1 1 1 1 1 . Scrap Searched 2 | . . . . 2 . Spaces Dug . | . . . . . . Terrain Destroyed . | . . . . . . Melee . | . . . . . . Projectile . | . . . . . . AOE . | . . . . . . Terrain Rammed . | . . . . . . Walls Destroyed . | . . . . . . Machines Disabled . | . . . . . . Actions | -11 -10 -10 -10 -9 -8 --------- Run | Yrd Mat Min Exi Min Mat Total 906 | 93 281 116 261 91 64 Wait 127 | . 16 3 38 24 46 Move 704 | 67 229 109 221 66 12 Hop . | . . . . . . Pick Up 7 | 5 2 . . . . Fast Attach 8 | 7 . . 1 . . Attach 1 | . . . . . 1 Detach 1 | . . . . 1 . Swap 1 | . 1 . . . . Drop 2 | . . . 1 . 1 Fire 55 | 14 33 4 . . 4 Melee . | . . . . . . Ram . | . . . . . . Kick . | . . . . . . Crush . | . . . . . . Escape Stasis . | . . . . . . Rewire . | . . . . . . Trap . | . . . . . . Miscellaneous . | . . . . . . Route ------- -11/Scrapyard -10/Materials (discovered 3 exits: [*Mat x2] / [*Min]) -10/Mines (discovered 2 exits: [*Mat] / *Exi) -10/Exiles (discovered 2 exits: [*Min x2]) -9/Mines (discovered 2 exits: [*Mat x2]) -8/Materials (discovered 2 exits: [*Fac x2]) History --------- Turn | Location | Event 4 | -11/Scrapyard | Discovered new exit (range 16) 158 | -11/Scrapyard | Entered Materials 240 | -10/Materials | Discovered new exit (range 4) 311 | -10/Materials | Build established: Mutant 457 | -10/Materials | Discovered new exit (range 15) 626 | -10/Materials | Discovered new exit (range 9) 642 | -10/Materials | Entered Mines 652 | -10/Mines | Met a Derelict bent on vengeance 773 | -10/Mines | Discovered new exit (range 10) 802 | -10/Mines | Assisted by bots powering up and referring to "LRC-V3" 821 | -10/Mines | Deemed a non-threat by the Exiles lab entrance 822 | -10/Mines | Discovered new exit (range 5) 832 | -10/Mines | Entered Exiles 832 | -10/Exiles | Accompanied by 3 allies 871 | -10/Exiles | Met 8R-AWN 900 | -10/Exiles | Met EX-HEX 943 | -10/Exiles | Met EX-BIN 965 | -10/Exiles | Aligned with FarCom system 967 | -10/Exiles | Given EX-Vault access code 1013 | -10/Exiles | Opened EX-Vault 1033 | -10/Exiles | Found Supersonic Drone Bay 1039 | -10/Exiles | Discovered new exit (range 57) 1046 | -10/Exiles | Discovered new exit (range 68) 1100 | -10/Exiles | Warned to stay clear of 0b10 Research branches 1151 | -10/Exiles | Met EX-DEC 1226 | -10/Exiles | Left Exiles lab with Supersonic Drone Bay 1226 | -10/Exiles | Entered Mines 1226 | -9/Mines | Accompanied by 4 allies 1228 | -9/Mines | Discovered new exit (range 48) 1236 | -9/Mines | Discovered new exit (range 48) 1357 | -9/Mines | Entered Materials 1357 | -8/Materials | Accompanied by 3 allies 1357 | -8/Materials | Evolved 4 slots: Weapon x4 1363 | -8/Materials | Discovered new exit (range 56) 1409 | -8/Materials | Discovered new exit (range 49) 1436 | -8/Materials | Self-destructed Last Messages --------------- 01378_ Mercenary 1a destroyed. 01378_ Trailblazer retrieved by Supersonic Drone Bay (no repairs). 01389_ S-10 Pest destroyed. 01392_ Atomic Centrifuge disabled. 01392_ S-10 Pest destroyed. 01398_ Trooper 1b destroyed. 01399_ S-10 Pest destroyed. 01406_ Trailblazer released from Supersonic Drone Bay. 01409_ EXIT=FOUND 01409_ K-01 Serf cleans the Repair Station. 01411_ Trailblazer retrieved by Supersonic Drone Bay (no repairs). 01412_ Trailblazer released from Supersonic Drone Bay. 01414_ T-07 Excavator is excavating. 01415_ Trailblazer retrieved by Supersonic Drone Bay (no repairs). 01416_ Trailblazer released from Supersonic Drone Bay. 01422_ K-01 Serf collects debris. 01424_ Trailblazer retrieved by Supersonic Drone Bay (no repairs). 01425_ Trailblazer released from Supersonic Drone Bay. 01430_ Trailblazer destroyed. 01436_ Dropped Supersonic Drone Bay. Map ----- +----------------------------------------------------+ | ???????#####/#### # # #?# #?# | | ???????# # #""" [# #?# "" #?# | | ???????# ! [ [ # #""" # """ #?# | """#?# | | ???????# # #""" # """ #?# R"#?# | | ???????# !!! # # # """ #? """#?# | | ???????# !!! # #""" % #= #?# #?# | | ???????# !! # #""" #################?# | | ???????# #####""" ## #????????# | | ???????# [#???# ## #????????# | | ???????# #???########### ########## | | ???????####+#####?????????????# # | | ????????# ######################+## | | ????????# T # | | ????????# " + | | ????????# # | | ????????# ####### # | | ????????#######?????# """ """ !!#! | | ????????????????????# """ """ ! ########## | | ?????????############ "" """ ##T####### | | ?????????# * *%[ %[ # | | ?????????# =%= =%%* # | | ?????????# ! =[ # | | ?????????###%[######+###############+##### # | | ???????????# ###### #???# # # | | ???????????# ## /g #???# """"" # # | | ???????????# ## ### @ #???#! """"" # #! | | ???????????# ## #?# #???# """"" # # | | ???????????# ## #?# #???# """"" # + | | ???????????# ###### #???# """"" # # | | ???????????# # ## #???# """"" # # | | ???????????# # ## #???# """"" # # | | ???????????# # ## #???# # # | | ???????????# # ####################???# ### | | ???????????# # #?????????# T #???# | | ???????????# # #?????????# = #???# ### | | ???????????# # #????###### #???# ### | | ???????????# ##+####### # #???# ####! | | ???????????# # #???# #??#! | | ???????????# ww / """ #???# #??# | | ???????????# !! """ # """ #???# #?## | | ???????????# ![ "T" ## """ #???# #?# | | ??????###### ! ## #???# #?# | | ????### ############ ## #?# | | ????# # #?# # #?# | | ????# ## ## #?# """"""" " # #?# | | ????# # ## ### #?# """"""" T # #?# | | ????### ##!![[!!#?# #?# """"""" " # #?# | | ?????# #!![[!!#?# #?# """"""" # ### | | ?????# ########?# #?# """"""" # | | ?????# #????????# ### ### # | +----------------------------------------------------+ Best States ------------- Heat Dissipation 31 Energy Generation 10 Energy Capacity 250 Matter Stores 300 Matter Capacity 300 Sight Range 16 Terrain Scan Density 10 Evasion (%) 40 Recoil Reduction 2 Item Schematics ----------------- None Robot Schematics ------------------ None Fabricated ------------ Nothing Repaired ---------- Nothing Studied --------- None Alien Tech Used ----------------- None Achievements -------------- None Challenges ------------ None Game ------ Seed SiegeIonAxe Manual? 0 Play Time 00:07:23 Cumulative 320.6 hours Start 2026.03.03 @ 05:44:13 End 2026.03.03 @ 05:51:44 Sessions 1 Manual Loads 0 Difficulty Rogue Special Mode None Game No. 256 Rogue 256 Adventurer 0 Explorer 0 Win Type - Total 18 Types 9/0/7/2/0/0/0/0/0/0 Lore% 85 Gallery% 75 Achievement% 62 Wizard Run 0 Options --------- Layout 1 ASCII 0 Keyboard 0 Movement Numpad Keybinds 0 Fullscreen 1 Font 32/SmallcapsGlow Map View 77x35 Zoom Use 0% Tactical HUD 1 Map Filters NONE Filters NONE Steam 1 RUN: aa07031d-bd3e-4766-a16c-b18cf2e252b4